fUST/lending_fUST_20250523
["ID","MTS","AMOUNT","RATE_DAILY","PERIOD"]
[362085616,1747985447397,-19.06766965,0.00016438,2]
[362085617,1747985451297,-190.34176456,0.00016274,2]
[362085618,1747985637684,5000.0,0.000161,2]
[362085619,1747985798524,306.3990207,0.00015496,2]
[362085620,1747985810601,170.0733565,0.0001562,2]
[362085621,1747985811343,6276.63989952,0.00015496,2]
[362085622,1747985811371,1723.97982228,0.00015496,2]
[362085623,1747985843673,1827.95917135,0.00016,2]
[362085625,1747986251898,380.889208,0.00013699,2]
[362085626,1747986302079,251.23553649,0.00016098,2]
[362085633,1747986383348,1000.0,0.000161,2]
[362085711,1747986632966,-337.07,0.00016274,14]
[362085712,1747986632976,-414.14775152,0.00016338,2]
[362085713,1747986632986,-348.02608841,0.00016338,2]
[362085714,1747986632996,-540.70717636,0.000164,2]
[362085715,1747986633007,-262.33,0.00016428,3]
[362085716,1747986633017,-787.01,0.00016428,3]
[362085717,1747986633027,-300.0,0.00016436,2]
[362085718,1747986633037,-300.0,0.00016436,2]
[362085719,1747986633047,-351.92709926,0.00016437,2]
[362085720,1747986633058,-300.0,0.00016437,2]
[362085721,1747986633068,-425.55383735,0.00016437,2]
[362085722,1747986633079,-314.57823366,0.00016438,3]
[362085723,1747986633089,-894.64583333,0.00016438,3]
[362085724,1747986633100,-11180.76625109,0.00016438,3]
[362085742,1747986638594,-300.0,0.00016437,2]
[362085745,1747986638618,-1466.89522338,0.00016438,3]
[362085748,1747986638637,-212.48480548,0.00016438,3]
[362085751,1747986638650,-17593.69660469,0.00016438,3]
[362085753,1747986638665,-430.0,0.00016438,2]
[362085756,1747986638682,-322.77845241,0.00016438,2]
[362085759,1747986638702,-353.88892207,0.00016438,2]
[362085762,1747986638717,-452.61121375,0.00016438,2]
[362085765,1747986638731,-430.0,0.00016438,2]
[362085769,1747986638746,-470.0,0.00016438,2]
[362085773,1747986638759,-430.0,0.00016438,2]
[362085777,1747986638773,-430.0,0.00016438,2]
[362085779,1747986638786,-412.32701915,0.00016438,2]
[362085782,1747986638799,-430.0,0.00016438,2]
[362085784,1747986638812,-171.33469025,0.00016438,2]
[362085787,1747986638824,-430.0,0.00016438,2]
[362085789,1747986638836,-352.90422119,0.00016438,2]
[362085791,1747986638849,-430.0,0.00016438,2]
[362085794,1747986638861,-430.0,0.00016438,2]
[362085796,1747986638874,-430.0,0.00016438,2]
[362085798,1747986638886,-352.58091204,0.00016438,2]
[362085800,1747986638898,-301.68828176,0.00016438,2]
[362085803,1747986638910,-430.0,0.00016438,2]
[362085805,1747986638922,-351.82279311,0.00016438,2]
[362085807,1747986638934,-391.21696724,0.00016438,2]
[362085809,1747986638946,-430.0,0.00016438,2]
[362085810,1747986638957,-400.0,0.00016438,2]
[362085811,1747986638970,-430.0,0.00016438,2]
[362085812,1747986638982,-352.0390938,0.00016438,2]
[362085813,1747986638994,-430.0,0.00016438,2]
[362085814,1747986639006,-430.0,0.00016438,2]
[362085815,1747986639018,-430.0,0.00016438,2]
[362085816,1747986639031,-430.0,0.00016438,2]
[362085817,1747986639043,-430.0,0.00016438,2]
[362085818,1747986639055,-355.56037568,0.00016438,2]
[362085819,1747986639067,-430.0,0.00016438,2]
[362085820,1747986639079,-430.0,0.00016438,2]
[362085821,1747986639091,-430.0,0.00016438,2]
[362085822,1747986639104,-430.0,0.00016438,2]
[362085823,1747986639116,-154.95039111,0.00016438,2]
[362085824,1747986639128,-553.15745365,0.00016438,2]
[362085825,1747986639140,-351.9445431,0.00016438,2]
[362085826,1747986639152,-257.57448922,0.00016438,2]
[362085827,1747986639164,-352.60178299,0.00016438,2]
[362085828,1747986639177,-430.0,0.00016438,2]
[362085829,1747986639195,-430.0,0.00016438,2]
[362085830,1747986639208,-557.5578142,0.00016438,2]
[362085831,1747986639220,-430.0,0.00016438,2]
[362085832,1747986639233,-321.41704221,0.00016438,2]
[362085833,1747986639247,-430.0,0.00016438,2]
[362085834,1747986639260,-453.09017933,0.00016438,2]
[362085835,1747986639273,-430.0,0.00016438,2]
[362085836,1747986639286,-320.73047115,0.00016438,2]
[362085837,1747986639300,-430.0,0.00016438,2]
[362085838,1747986639312,-430.0,0.00016438,2]
[362085839,1747986639325,-514.98482602,0.00016438,2]
[362085840,1747986639337,-438.59287815,0.00016438,2]
[362085841,1747986639349,-432.38763229,0.00016438,2]
[362085842,1747986639362,-430.0,0.00016438,2]
[362085843,1747986639375,-159.67642601,0.00016438,2]
[362085844,1747986639387,-430.82667654,0.00016438,2]
[362085845,1747986639399,-430.0,0.00016438,2]
[362085846,1747986639411,-430.0,0.00016438,2]
[362085847,1747986639424,-396.3045612,0.00016438,2]
[362085848,1747986639436,-431.99183251,0.00016438,2]
[362085849,1747986639448,-432.2319265,0.00016438,2]
[362085850,1747986639461,-430.96352664,0.00016438,2]
[362085851,1747986639473,-434.39209758,0.00016438,2]
[362085852,1747986639486,-430.0,0.00016438,2]
[362085854,1747986639500,-360.34194656,0.00016438,2]
[362085855,1747986639512,-441.82330801,0.00016438,2]
[362085856,1747986639524,-400.0,0.00016438,2]
[362085857,1747986639535,-430.97805289,0.00016438,2]
[362085858,1747986639546,-436.27641255,0.00016438,2]
[362085859,1747986639557,-330.53994566,0.00016438,2]
[362085860,1747986639569,-401.83847347,0.00016438,2]
[362085861,1747986639579,-404.52533915,0.00016438,2]
[362085862,1747986639590,-430.0,0.00016438,2]
[362085863,1747986639599,-431.13223606,0.00016438,2]
[362085864,1747986639610,-401.08164767,0.00016438,2]
[362085865,1747986639620,-430.0,0.00016438,2]
[362085866,1747986639630,-430.0,0.00016438,2]
[362085867,1747986639639,-403.33781037,0.00016438,2]
[362085868,1747986639855,-430.0,0.00016438,2]
[362085869,1747986639875,-430.0,0.00016438,2]
[362085870,1747986639885,-431.35641826,0.00016438,2]
[362085871,1747986639895,-430.88411686,0.00016438,2]
[362085872,1747986639904,-430.0,0.00016438,2]
[362085873,1747986639914,-430.63315128,0.00016438,2]
[362085874,1747986639923,-430.0,0.00016438,2]
[362085875,1747986639934,-432.70650513,0.00016438,2]
[362085876,1747986639945,-430.0,0.00016438,2]
[362085877,1747986639955,-430.0,0.00016438,2]
[362085878,1747986639964,-430.0,0.00016438,2]
[362085879,1747986639975,-430.0,0.00016438,2]
[362085880,1747986639986,-399.88265152,0.00016438,2]
[362085881,1747986639997,-375.3042592,0.00016438,2]
[362085882,1747986640008,-430.0,0.00016438,2]
[362085883,1747986640020,-430.0,0.00016438,2]
[362085884,1747986640031,-470.0,0.00016438,2]
[362085885,1747986640041,-430.0,0.00016438,2]
[362085886,1747986640051,-447.96823272,0.00016438,2]
[362085887,1747986640061,-430.0,0.00016438,2]
[362085888,1747986640070,-430.0,0.00016438,2]
[362085890,1747986640080,-430.0,0.00016438,2]
[362085891,1747986640089,-470.0,0.00016438,2]
[362085892,1747986640099,-346.66344884,0.00016438,2]
[362085893,1747986640109,-430.0,0.00016438,2]
[362085894,1747986640118,-430.0,0.00016438,2]
[362085896,1747986640128,-430.0,0.00016438,2]
[362085897,1747986640137,-341.94901891,0.00016438,2]
[362085899,1747986640147,-375.83552925,0.00016438,2]
[362085901,1747986640157,-501.41210222,0.00016438,2]
[362085902,1747986640168,-450.0,0.00016438,2]
[362085903,1747986640178,-427.00307512,0.00016438,2]
[362085904,1747986640188,-430.0,0.00016438,2]
[362085905,1747986640197,-333.6079753,0.00016438,2]
[362085906,1747986640207,-556.35402349,0.00016438,2]
[362085907,1747986640217,-450.0,0.00016438,2]
[362085908,1747986640227,-430.0,0.00016438,2]
[362085909,1747986640237,-430.0,0.00016438,2]
[362085910,1747986640247,-430.0,0.00016438,2]
[362085911,1747986640257,-430.0,0.00016438,2]
[362085912,1747986640267,-430.0,0.00016438,2]
[362085913,1747986640276,-430.0,0.00016438,2]
[362085914,1747986640286,-430.0,0.00016438,2]
[362085915,1747986640296,-430.0,0.00016438,2]
[362085916,1747986640306,-356.01049874,0.00016438,2]
[362085917,1747986640315,-444.98447029,0.00016438,2]
[362085918,1747986640325,-430.0,0.00016438,2]
[362085919,1747986640335,-504.08116484,0.00016438,2]
[362085920,1747986640345,-347.12367049,0.00016438,2]
[362085921,1747986640355,-430.0,0.00016438,2]
[362085922,1747986640365,-430.0,0.00016438,2]
[362085923,1747986640374,-363.16851241,0.00016438,2]
[362085924,1747986640384,-461.3527492,0.00016438,2]
[362085925,1747986640394,-368.38376565,0.00016438,2]
[362085926,1747986640403,-360.63266077,0.00016438,2]
[362085927,1747986640413,-375.75553759,0.00016438,2]
[362085928,1747986640422,-473.68929896,0.00016438,2]
[362085929,1747986640431,-360.80504395,0.00016438,2]
[362085930,1747986640441,-430.0,0.00016438,2]
[362085931,1747986640450,-538.13749246,0.00016438,2]
[362085932,1747986640460,-430.0,0.00016438,2]
[362085933,1747986640469,-454.99362954,0.00016438,2]
[362085934,1747986640478,-430.0,0.00016438,2]
[362085935,1747986640490,-365.97458137,0.00016438,2]
[362085936,1747986640500,-430.0,0.00016438,2]
[362085937,1747986640510,-359.24450446,0.00016438,2]
[362085938,1747986640519,-430.0,0.00016438,2]
[362085939,1747986640528,-361.61042121,0.00016438,2]
[362085940,1747986640539,-344.9517251,0.00016438,2]
[362085941,1747986640548,-430.0,0.00016438,2]
[362085942,1747986640558,-430.0,0.00016438,2]
[362085943,1747986640568,-430.0,0.00016438,2]
[362085945,1747986640578,-430.0,0.00016438,2]
[362085946,1747986640587,-330.0769539,0.00016438,2]
[362085947,1747986640597,-430.0,0.00016438,2]
[362085948,1747986640607,-475.15700086,0.00016438,2]
[362085950,1747986640628,-323.31747089,0.00016438,2]
[362085951,1747986640639,-323.11901148,0.00016438,2]
[362085952,1747986640650,-430.0,0.00016438,2]
[362085954,1747986640660,-360.62372662,0.00016438,2]
[362085956,1747986640670,-430.0,0.00016438,2]
[362085957,1747986640680,-430.0,0.00016438,2]
[362085958,1747986640690,-367.51990722,0.00016438,2]
[362085959,1747986640700,-164.83445518,0.00016438,2]
[362085961,1747986640710,-459.47223641,0.00016438,2]
[362085963,1747986640721,-462.82602369,0.00016438,2]
[362085964,1747986640731,-473.74689769,0.00016438,2]
[362085965,1747986640740,-430.0,0.00016438,2]
[362085966,1747986640751,-353.63084285,0.00016438,2]
[362085967,1747986640761,-430.0,0.00016438,2]
[362085968,1747986640772,-500.0,0.00016438,2]
[362085969,1747986640782,-542.76108936,0.00016438,2]
[362085970,1747986640792,-157.38421845,0.00016438,2]
[362085971,1747986640802,-430.0,0.00016438,2]
[362085972,1747986640812,-430.0,0.00016438,2]
[362085973,1747986640822,-355.96073157,0.00016438,2]
[362085974,1747986640832,-430.0,0.00016438,2]
[362085975,1747986640842,-430.0,0.00016438,2]
[362085976,1747986640852,-450.0,0.00016438,2]
[362085977,1747986640863,-430.0,0.00016438,2]
[362085978,1747986640873,-430.0,0.00016438,2]
[362085979,1747986640883,-430.0,0.00016438,2]
[362085980,1747986640893,-430.0,0.00016438,2]
[362085981,1747986640903,-358.71831555,0.00016438,2]
[362085982,1747986640913,-355.15323334,0.00016438,2]
[362085983,1747986640922,-356.44485557,0.00016438,2]
[362085984,1747986640932,-430.0,0.00016438,2]
[362085985,1747986640941,-472.42674208,0.00016438,2]
[362085986,1747986640951,-312.8501873,0.00016438,2]
[362085987,1747986640960,-430.0,0.00016438,2]
[362085988,1747986640970,-430.0,0.00016438,2]
[362085989,1747986640980,-468.46180767,0.00016438,2]
[362085990,1747986640990,-357.2349265,0.00016438,2]
[362085991,1747986640999,-430.0,0.00016438,2]
[362085992,1747986641009,-450.0,0.00016438,2]
[362085993,1747986641018,-430.0,0.00016438,2]
[362085994,1747986641027,-500.06509833,0.00016438,2]
[362085995,1747986641037,-354.86960708,0.00016438,2]
[362085997,1747986641047,-430.0,0.00016438,2]
[362085999,1747986641058,-476.00629058,0.00016438,2]
[362086000,1747986641067,-437.2920947,0.00016438,2]
[362086001,1747986641076,-400.65572594,0.00016438,2]
[362086002,1747986641086,-430.0,0.00016438,2]
[362086003,1747986641095,-435.1452007,0.00016438,2]
[362086004,1747986641108,-430.0,0.00016438,2]
[362086005,1747986641119,-362.29915738,0.00016438,2]
[362086006,1747986641128,-430.0,0.00016438,2]
[362086007,1747986641138,-470.0,0.00016438,2]
[362086008,1747986641147,-430.0,0.00016438,2]
[362086009,1747986641157,-174.71450045,0.00016438,2]
[362086010,1747986641167,-430.0,0.00016438,2]
[362086011,1747986641176,-430.0,0.00016438,2]
[362086012,1747986641186,-402.19760348,0.00016438,2]
[362086013,1747986641195,-350.0,0.00016438,2]
[362086014,1747986641205,-430.0,0.00016438,2]
[362086015,1747986641215,-359.60284988,0.00016438,2]
[362086016,1747986641225,-430.0,0.00016438,2]
[362086017,1747986641234,-430.0,0.00016438,2]
[362086018,1747986641244,-430.0,0.00016438,2]
[362086019,1747986641254,-430.0,0.00016438,2]
[362086020,1747986641264,-411.4766197,0.00016438,2]
[362086021,1747986641274,-430.0,0.00016438,2]
[362086022,1747986641284,-485.3475709,0.00016438,2]
[362086023,1747986641293,-430.0,0.00016438,2]
[362086024,1747986641304,-307.82361558,0.00016438,2]
[362086025,1747986641313,-430.0,0.00016438,2]
[362086026,1747986641323,-465.7066474,0.00016438,2]
[362086027,1747986641332,-430.0,0.00016438,2]
[362086028,1747986641341,-430.0,0.00016438,2]
[362086029,1747986641351,-430.0,0.00016438,2]
[362086030,1747986641361,-430.0,0.00016438,2]
[362086031,1747986641371,-430.0,0.00016438,2]
[362086032,1747986641380,-430.0,0.00016438,2]
[362086033,1747986641390,-430.0,0.00016438,2]
[362086034,1747986641400,-430.0,0.00016438,2]
[362086035,1747986641409,-354.3912622,0.00016438,2]
[362086036,1747986641420,-494.96450778,0.00016438,2]
[362086037,1747986641429,-430.0,0.00016438,2]
[362086038,1747986641438,-430.0,0.00016438,2]
[362086039,1747986641448,-402.71097036,0.00016438,2]
[362086040,1747986641458,-430.0,0.00016438,2]
[362086041,1747986641468,-430.0,0.00016438,2]
[362086042,1747986641477,-430.0,0.00016438,2]
[362086043,1747986641488,-430.0,0.00016438,2]
[362086044,1747986641500,-298.77794567,0.00016438,2]
[362086045,1747986641509,-430.0,0.00016438,2]
[362086046,1747986641519,-430.0,0.00016438,2]
[362086047,1747986641529,-430.0,0.00016438,2]
[362086048,1747986641538,-471.97075489,0.00016438,2]
[362086049,1747986641548,-165.55412834,0.00016438,2]
[362086050,1747986641557,-436.74823618,0.00016438,2]
[362086051,1747986641568,-430.0,0.00016438,2]
[362086052,1747986641578,-622.32,0.00016438,2]
[362086053,1747986641588,-622.32,0.00016438,2]
[362086054,1747986641597,-622.32,0.00016438,2]
[362086055,1747986641607,-622.32,0.00016438,2]
[362086056,1747986641617,-622.32,0.00016438,2]
[362086057,1747986641626,-622.32,0.00016438,2]
[362086058,1747986641636,-622.32,0.00016438,2]
[362086059,1747986641646,-622.32,0.00016438,2]
[362086061,1747986641657,-430.0,0.00016438,2]
[362086062,1747986641666,-430.0,0.00016438,2]
[362086063,1747986641676,-430.0,0.00016438,2]
[362086064,1747986641685,-627.55,0.00016438,2]
[362086065,1747986641694,-506.78159358,0.00016438,2]
[362086066,1747986641704,-430.0,0.00016438,2]
[362086067,1747986641714,-430.0,0.00016438,2]
[362086068,1747986641723,-332.34891208,0.00016438,2]
[362086069,1747986641733,-430.0,0.00016438,2]
[362086070,1747986641742,-430.0,0.00016438,2]
[362086071,1747986641751,-376.52514337,0.00016438,2]
[362086072,1747986641761,-430.0,0.00016438,2]
[362086073,1747986641770,-339.19692763,0.00016438,2]
[362086074,1747986641779,-430.0,0.00016438,2]
[362086075,1747986641788,-430.0,0.00016438,2]
[362086076,1747986641798,-361.88106211,0.00016438,2]
[362086077,1747986641807,-430.0,0.00016438,2]
[362086078,1747986641818,-430.0,0.00016438,2]
[362086079,1747986641827,-430.0,0.00016438,2]
[362086080,1747986641838,-430.0,0.00016438,2]
[362086081,1747986641848,-430.0,0.00016438,2]
[362086082,1747986641857,-430.0,0.00016438,2]
[362086083,1747986641866,-430.0,0.00016438,2]
[362086084,1747986641876,-430.0,0.00016438,2]
[362086085,1747986641886,-506.23,0.00016438,2]
[362086086,1747986641896,-430.0,0.00016438,2]
[362086087,1747986641906,-430.0,0.00016438,2]
[362086088,1747986641915,-323.41053963,0.00016438,2]
[362086089,1747986641925,-376.90953153,0.00016438,2]
[362086090,1747986641935,-430.0,0.00016438,2]
[362086091,1747986641945,-430.0,0.00016438,2]
[362086092,1747986641954,-430.0,0.00016438,2]
[362086093,1747986641963,-430.0,0.00016438,2]
[362086094,1747986641973,-430.0,0.00016438,2]
[362086095,1747986641982,-370.46198789,0.00016438,2]
[362086096,1747986641993,-430.0,0.00016438,2]
[362086097,1747986642002,-307.12383123,0.00016438,2]
[362086098,1747986642012,-430.0,0.00016438,2]
[362086099,1747986642021,-358.88333665,0.00016438,2]
[362086100,1747986642030,-322.93539212,0.00016438,2]
[362086101,1747986642040,-430.0,0.00016438,2]
[362086102,1747986642050,-400.0,0.00016438,2]
[362086103,1747986642059,-430.0,0.00016438,2]
[362086104,1747986642069,-362.33351198,0.00016438,2]
[362086105,1747986642078,-430.0,0.00016438,2]
[362086106,1747986642088,-457.49554221,0.00016438,2]
[362086107,1747986642097,-430.0,0.00016438,2]
[362086108,1747986642107,-430.0,0.00016438,2]
[362086109,1747986642118,-430.0,0.00016438,2]
[362086110,1747986642127,-430.0,0.00016438,2]
[362086111,1747986642136,-361.40196904,0.00016438,2]
[362086112,1747986642146,-792.87,0.00016438,2]
[362086113,1747986642155,-430.0,0.00016438,2]
[362086114,1747986642165,-632.28,0.00016438,2]
[362086115,1747986642174,-430.0,0.00016438,2]
[362086116,1747986642184,-743.79,0.00016438,2]
[362086117,1747986642193,-430.0,0.00016438,2]
[362086118,1747986642203,-430.0,0.00016438,2]
[362086119,1747986642213,-430.0,0.00016438,2]
[362086120,1747986642222,-430.0,0.00016438,2]
[362086121,1747986642232,-430.0,0.00016438,2]
[362086122,1747986642242,-430.0,0.00016438,2]
[362086123,1747986642252,-430.0,0.00016438,2]
[362086124,1747986642261,-430.0,0.00016438,2]
[362086125,1747986642271,-430.0,0.00016438,2]
[362086126,1747986642281,-430.0,0.00016438,2]
[362086127,1747986642291,-358.14043723,0.00016438,2]
[362086128,1747986642301,-430.0,0.00016438,2]
[362086129,1747986642310,-430.0,0.00016438,2]
[362086130,1747986642319,-430.0,0.00016438,2]
[362086131,1747986642329,-430.0,0.00016438,2]
[362086132,1747986642339,-430.0,0.00016438,2]
[362086133,1747986642349,-2056.54,0.00016438,2]
[362086134,1747986642359,-324.07693964,0.00016438,2]
[362086135,1747986642369,-583.55,0.00016438,2]
[362086136,1747986642379,-751.02,0.00016438,2]
[362086137,1747986642388,-430.0,0.00016438,2]
[362086138,1747986642398,-409.73413795,0.00016438,2]
[362086139,1747986642408,-440.7734249,0.00016438,2]
[362086140,1747986642417,-430.0,0.00016438,2]
[362086141,1747986642427,-746.21,0.00016438,2]
[362086142,1747986642436,-365.72388441,0.00016438,2]
[362086143,1747986642445,-351.7004994,0.00016438,2]
[362086144,1747986642454,-430.0,0.00016438,2]
[362086145,1747986642464,-430.0,0.00016438,2]
[362086146,1747986642474,-430.0,0.00016438,2]
[362086147,1747986642484,-363.93944327,0.00016438,2]
[362086148,1747986642498,-430.0,0.00016438,2]
[362086149,1747986642507,-430.0,0.00016438,2]
[362086150,1747986642516,-354.34865823,0.00016438,2]
[362086151,1747986642526,-430.0,0.00016438,2]
[362086152,1747986642536,-402.29922967,0.00016438,2]
[362086153,1747986642545,-430.0,0.00016438,2]
[362086154,1747986642554,-430.0,0.00016438,2]
[362086155,1747986642564,-430.0,0.00016438,2]
[362086156,1747986642574,-626.41,0.00016438,2]
[362086157,1747986642585,-402.68514017,0.00016438,2]
[362086158,1747986642594,-430.0,0.00016438,2]
[362086159,1747986642603,-430.0,0.00016438,2]
[362086160,1747986642613,-450.0,0.00016438,2]
[362086161,1747986642623,-401.51275178,0.00016438,2]
[362086162,1747986642632,-430.0,0.00016438,2]
[362086163,1747986642643,-430.0,0.00016438,2]
[362086164,1747986642653,-326.35599848,0.00016438,2]
[362086165,1747986642663,-494.43,0.00016438,2]
[362086166,1747986642672,-430.0,0.00016438,2]
[362086167,1747986642681,-430.0,0.00016438,2]
[362086168,1747986642690,-430.0,0.00016438,2]
[362086169,1747986642699,-430.0,0.00016438,2]
[362086170,1747986642709,-430.0,0.00016438,2]
[362086171,1747986642719,-430.0,0.00016438,2]
[362086172,1747986642728,-430.0,0.00016438,2]
[362086173,1747986642738,-430.0,0.00016438,2]
[362086174,1747986642747,-430.0,0.00016438,2]
[362086175,1747986642756,-430.0,0.00016438,2]
[362086176,1747986642765,-363.44226922,0.00016438,2]
[362086177,1747986642775,-430.0,0.00016438,2]
[362086178,1747986642784,-430.0,0.00016438,2]
[362086179,1747986642793,-430.0,0.00016438,2]
[362086180,1747986642802,-430.0,0.00016438,2]
[362086181,1747986642812,-430.0,0.00016438,2]
[362086182,1747986642822,-454.56089989,0.00016438,2]
[362086183,1747986642831,-430.0,0.00016438,2]
[362086184,1747986642840,-430.0,0.00016438,2]
[362086185,1747986642850,-430.0,0.00016438,2]
[362086186,1747986642860,-430.0,0.00016438,2]
[362086187,1747986642869,-374.02793579,0.00016438,2]
[362086188,1747986642878,-430.0,0.00016438,2]
[362086189,1747986642888,-430.0,0.00016438,2]
[362086190,1747986642898,-2083.46,0.00016438,2]
[362086191,1747986642908,-430.0,0.00016438,2]
[362086192,1747986642917,-430.0,0.00016438,2]
[362086193,1747986642927,-430.0,0.00016438,2]
[362086194,1747986642937,-430.0,0.00016438,2]
[362086195,1747986642947,-430.0,0.00016438,2]
[362086196,1747986642957,-251.13077075,0.00016438,2]
[362086197,1747986642967,-430.0,0.00016438,2]
[362086198,1747986642977,-401.01524642,0.00016438,2]
[362086199,1747986642986,-430.0,0.00016438,2]
[362086201,1747986642996,-430.0,0.00016438,2]
[362086202,1747986643006,-430.0,0.00016438,2]
[362086203,1747986643015,-656.86,0.00016438,2]
[362086204,1747986643026,-452.10988192,0.00016438,2]
[362086205,1747986643035,-430.0,0.00016438,2]
[362086208,1747986643045,-430.0,0.00016438,2]
[362086209,1747986643054,-430.0,0.00016438,2]
[362086211,1747986643064,-430.0,0.00016438,2]
[362086213,1747986643074,-430.0,0.00016438,2]
[362086214,1747986643083,-430.0,0.00016438,2]
[362086215,1747986643093,-778.2,0.00016438,2]
[362086216,1747986643102,-353.34326803,0.00016438,2]
[362086217,1747986643112,-430.0,0.00016438,2]
[362086218,1747986643123,-430.0,0.00016438,2]
[362086219,1747986643133,-430.0,0.00016438,2]
[362086220,1747986643143,-348.475889,0.00016438,2]
[362086232,1747986643300,-430.0,0.00016438,2]
[362086235,1747986643311,-525.17088228,0.00016438,2]
[362086238,1747986643322,-1637.49,0.00016438,2]
[362086241,1747986643332,-351.94010241,0.00016438,2]
[362086244,1747986643343,-326.64796589,0.00016438,2]
[362086246,1747986643352,-404.9073149,0.00016438,2]
[362086248,1747986643363,-430.0,0.00016438,2]
[362086249,1747986643373,-430.0,0.00016438,2]
[362086250,1747986643384,-183.81281567,0.00016438,2]
[362086251,1747986643394,-241.76049263,0.00016438,2]
[362086252,1747986643404,-622.32,0.00016711,2]
[362086253,1747986643414,-622.32,0.00016711,2]
[362086254,1747986643423,-622.32,0.00016711,2]
[362086255,1747986643433,-622.32,0.00016711,2]
[362086257,1747986643443,-622.32,0.00016711,2]
[362086259,1747986643453,-500.0,0.00016711,2]
[362086261,1747986643464,-500.0,0.00016711,2]
[362086262,1747986643474,-500.0,0.00016711,2]
[362086264,1747986643484,-298.57642431,0.00016711,2]
[362086266,1747986643496,-500.0,0.00016711,2]
[362086268,1747986643507,-617.77058588,0.00016711,2]
[362086269,1747986643517,-500.0,0.00016711,2]
[362086270,1747986643527,-500.0,0.00016711,2]
[362086272,1747986643537,-500.0,0.00016711,2]
[362086274,1747986643548,-500.0,0.00016711,2]
[362086275,1747986643558,-500.0,0.00016711,2]
[362086276,1747986643568,-500.0,0.00016711,2]
[362086278,1747986643577,-500.0,0.00016711,2]
[362086279,1747986643588,-500.0,0.00016711,2]
[362086280,1747986643598,-500.0,0.00016711,2]
[362086281,1747986643608,-156.53275327,0.00016711,2]
[362086282,1747986643618,-470.0,0.00016712,2]
[362086283,1747986643628,-430.0,0.00016712,2]
[362086284,1747986643638,-336.77933704,0.00016712,2]
[362086285,1747986643649,-430.0,0.00016712,2]
[362086286,1747986643659,-375.09752478,0.00016712,2]
[362086287,1747986643669,-349.8636417,0.00016712,2]
[362086288,1747986643679,-430.0,0.00016712,2]
[362086289,1747986643689,-476.78700045,0.00016712,2]
[362086290,1747986643699,-208.90518167,0.00016712,2]
[362086291,1747986643709,-566.69189843,0.00016712,2]
[362086292,1747986643718,-390.13652978,0.00016712,2]
[362086293,1747986643728,-321.64743689,0.00016712,2]
[362086295,1747986643738,-323.59377873,0.00016712,2]
[362086297,1747986643748,-430.0,0.00016712,2]
[362086298,1747986643758,-322.67361438,0.00016712,2]
[362086299,1747986643768,-470.0,0.00016712,2]
[362086300,1747986643777,-326.02868599,0.00016712,2]
[362086301,1747986643787,-480.02727481,0.00016712,2]
[362086302,1747986643797,-348.49878432,0.00016712,2]
[362086304,1747986643807,-326.77180809,0.00016712,2]
[362086305,1747986643817,-323.77909721,0.00016712,2]
[362086306,1747986643827,-326.65073307,0.00016712,2]
[362086307,1747986643838,-477.74806111,0.00016712,2]
[362086308,1747986643848,-473.38605538,0.00016712,2]
[362086309,1747986643857,-470.0,0.00016712,2]
[362086310,1747986643867,-469.07109093,0.00016712,2]